bitfinex-derivatives/quotes_SOLF0:USTF0_20240820
["timestamp","ask_amount","ask_price","bid_price","bid_amount"]
[1724164845169,0.05207,142.95,142.93,3.54757816]
[1724164845880,0.05207,142.95,142.93,6.98734597]
[1724164846279,0.05207,142.95,142.93,0.05047816]
[1724164846974,3.54887,142.95,142.93,0.05047816]
[1724164847470,0.05207,142.95,142.94,3.4969]
[1724164847677,0.05207,142.95,142.93,0.05047816]
[1724164848179,3.54877,142.95,142.93,0.05047816]
[1724164848383,0.05207,142.95,142.93,0.05047816]
[1724164848885,0.05207,142.95,142.93,3.54747816]
[1724164849481,3.54867,142.95,142.93,3.54747816]
[1724164849880,3.54867,142.95,142.93,0.05047816]
[1724164850587,0.05207,142.95,142.93,3.54757816]
[1724164850978,0.05207,142.95,142.93,0.05047816]
[1724164851179,0.05207,142.95,142.94,3.4969]
[1724164851477,0.05207,142.95,142.94,3.5201663]
[1724164852478,0.05207,142.95,142.93,3.54747816]
[1724164853177,0.05207,142.95,142.94,3.4969]
[1724164853379,40.29,143.0,142.93,0.05047816]
[1724164853687,40.29,143.06,142.97,40.29]
[1724164854090,3.4946,143.04,142.98,5.2771]
[1724164854292,3.4946,143.04,143.01,3.4951]
[1724164855187,3.54385157,143.04,143.01,3.4951]
[1724164855387,0.04925157,143.04,143.03,3.4947]
[1724164855587,50.31,143.1,143.01,50.31]
[1724164855788,50.31,143.12,143.01,50.31]
[1724164855991,72.7861244,143.11,143.07,3.4936]
[1724164856692,69.2933244,143.11,143.03,50.31]
[1724164857081,0.04712719,143.1,143.08,0.04740044]
[1724164857795,50.31,143.14,143.03,50.31]
[1724164857992,3.4927,143.11,143.06,3.4939]
[1724164858294,50.31,143.12,143.06,3.4939]
[1724164858495,3.54645243,143.1,143.08,0.04604605]
[1724164858684,0.05335243,143.1,143.08,0.04604605]
[1724164858993,3.4932,143.09,143.08,0.04604605]
[1724164860793,50.36335243,143.1,143.0,3.53100555]
[1724164861092,50.36335243,143.1,142.98,5.2771]
[1724164861093,50.31,143.05,142.98,5.2771]
[1724164861484,50.31,143.03,142.98,5.2771]
[1724164861892,53.8049,143.03,142.98,5.2771]
[1724164862089,0.04986013,143.02,142.99,0.04860785]
[1724164862479,0.04986013,143.02,142.99,3.54410785]
[1724164862990,3.54486013,143.02,142.99,0.04860785]
[1724164864089,0.04986013,143.02,142.99,0.04860785]
[1724164864295,0.04986013,143.02,143.0,3.44870385]
[1724164864497,0.04986013,143.02,143.01,3.4952]
[1724164866596,0.04986013,143.02,143.0,3.53710528]
[1724164866800,0.04986013,143.02,142.99,0.04860785]
[1724164867095,3.54486013,143.02,142.99,0.04860785]
[1724164867292,0.04986013,143.02,142.99,0.04860785]
[1724164867691,0.04986013,143.02,142.99,3.54410785]
[1724164867996,0.04986013,143.02,142.99,0.04860785]
[1724164868188,0.04986013,143.02,143.0,3.4952]
[1724164868392,50.31,143.09,142.99,0.04860785]
[1724164868591,50.31,143.07,142.99,0.04860785]
[1724164868795,50.31,143.07,143.01,3.495]
[1724164868992,50.31,143.07,142.98,2.6463]
[1724164869203,50.31,143.07,143.03,3.4946]
[1724164869204,3.4941,143.06,143.03,3.4946]
[1724164869793,3.54496967,143.06,143.03,3.53971053]
[1724164869993,0.05086967,143.06,143.04,3.4943]
[1724164870697,0.05086967,143.06,143.03,0.04511053]
[1724164870902,0.05086967,143.06,143.03,3.53971053]
[1724164871398,3.54486967,143.06,143.03,3.53971053]
[1724164871899,3.4942,143.05,143.03,0.04511053]
[1724164872092,0.05086967,143.06,143.03,0.04511053]
[1724164872493,0.05086967,143.06,143.04,3.4942]
[1724164874094,0.05086967,143.06,143.03,0.04511053]
[1724164874095,50.31,143.05,143.03,0.04511053]
[1724164874294,3.4944,143.04,143.03,0.04511053]
[1724164875204,50.31,143.05,142.96,2.684]
[1724164875391,50.31,143.02,142.96,2.684]
[1724164875601,50.31,143.02,142.96,6.26194355]
[1724164875890,3.4956,143.0,142.96,2.684]
[1724164876089,3.4956,143.0,142.96,6.23643922]
[1724164876289,3.4956,143.0,142.96,9.73273922]
[1724164876490,50.31,143.02,142.96,6.23643922]
[1724164876690,50.31,143.02,142.97,3.4961]
[1724164876911,0.04630793,142.99,142.97,0.04924356]
[1724164877119,50.31,143.06,142.97,0.04924356]
[1724164877403,50.31,143.08,142.97,50.35924356]
[1724164877606,50.31,143.11,142.99,50.31]
[1724164877808,8.83582292,143.1,143.02,3.4948]
[1724164877993,3.4943,143.05,142.99,50.31]
[1724164878198,0.04471185,143.07,142.99,50.31]
[1724164878400,0.05138721,143.04,143.02,3.4948]
[1724164878697,0.05065178,143.04,143.02,3.54533392]
[1724164879308,0.05065178,143.04,143.02,0.05053392]
[1724164879714,50.36065178,143.04,142.96,2.684]
[1724164880003,3.4955,143.0,142.96,6.1802]
[1724164880202,3.4955,143.0,142.96,2.684]
[1724164880608,50.31,143.02,142.96,2.684]
[1724164880907,50.31,143.02,142.95,6.19171322]
[1724164880908,0.05263826,142.99,142.97,0.05319294]
[1724164881112,3.4959,142.98,142.97,0.04434564]
[1724164882304,3.54080748,142.99,142.97,0.04434564]
[1724164882500,0.04510748,142.99,142.97,0.04434564]
[1724164883416,3.54090748,142.99,142.97,0.04434564]
[1724164884510,0.04510748,142.99,142.97,0.04434564]
[1724164886108,3.54090748,142.99,142.97,0.04434564]
[1724164886312,0.04510748,142.99,142.97,0.04434564]
[1724164888712,0.04510748,142.99,142.97,3.54034564]
[1724164888913,0.04510748,142.99,142.97,0.04434564]
[1724164889098,20.99,143.16,142.97,50.35434564]
[1724164889300,55.56629844,143.1,143.01,3.4952]
[1724164889511,50.31,143.06,142.96,50.31]
[1724164889699,50.31,143.04,142.97,3.45547262]
[1724164889903,50.31,143.04,142.95,2.6489]
[1724164890103,50.31,143.02,142.95,2.6489]
[1724164890507,3.4956,143.0,142.98,0.04474795]
[1724164891807,3.4957,142.99,142.98,0.04474795]
[1724164894811,3.496,142.98,142.94,3.4968]
[1724164895011,50.31,143.0,142.94,3.4968]
[1724164895318,53.77026138,143.0,142.92,3.42891088]
[1724164895507,3.4961,142.98,142.94,3.4967]
[1724164896115,0.05117424,142.97,142.95,0.04848644]
[1724164896606,3.4964,142.96,142.91,3.4975]
[1724164896905,40.29,142.94,142.88,6.17912745]
[1724164897105,40.29,142.94,142.88,2.6958]
[1724164897305,40.29,142.94,142.73,571.975]
[1724164897306,40.29,142.9,142.75,7.003]
[1724164897511,0.7718,142.99,142.87,40.29]
[1724164897707,0.04989226,142.94,142.92,0.0500925]
[1724164897922,0.05243797,142.94,142.92,0.0500925]
[1724164900521,3.54933797,142.94,142.92,0.0500925]
[1724164900816,0.05243797,142.94,142.92,0.0500925]
[1724164901923,3.4958,142.99,142.95,3.4965]
[1724164902219,50.38,143.03,142.93,50.38]
[1724164902408,3.4957,142.99,142.94,2.5392]
[1724164902604,50.38,143.03,142.94,2.5392]
[1724164903019,0.04857477,143.0,142.97,0.04715173]
[1724164903514,0.04857477,143.0,142.97,3.54325173]
[1724164903718,0.04857477,143.0,142.97,0.04715173]
[1724164905313,3.4959,142.98,142.97,0.04715173]
[1724164905915,3.4957,142.99,142.97,0.04715173]
[1724164906313,0.04857477,143.0,142.97,0.04715173]
[1724164906519,3.4959,142.98,142.97,0.04715173]
[1724164907213,37.0658,142.99,142.97,0.04715173]
[1724164907927,3.4958,142.99,142.97,0.04715173]
[1724164908429,3.4959,142.98,142.97,0.04715173]
[1724164908825,33.57,142.98,142.9,2.5932]
[1724164909021,0.04857477,143.0,142.76,19.42348861]
[1724164909022,33.57,142.91,142.76,19.42348861]
[1724164909219,54.60857477,143.0,142.76,19.42348861]
[1724164909220,20.99,142.98,142.84,2.5932]
[1724164909423,6.9917,142.99,142.84,2.5932]
[1724164909424,33.57,142.94,142.85,6.16999318]
[1724164909626,33.57,142.94,142.85,7.27705339]
[1724164909927,33.57,142.94,142.86,1.10706021]
[1724164910129,3.4975,142.92,142.86,1.10706021]
[1724164910328,33.57,142.94,142.86,1.10706021]
[1724164910527,33.57,142.94,142.86,4.60586021]
[1724164910845,0.04872886,142.91,142.88,0.05155979]
[1724164911731,3.498,142.9,142.88,0.05155979]
[1724164912038,0.04872886,142.91,142.88,0.05155979]
[1724164912933,0.04872886,142.91,142.88,3.54975979]
[1724164913734,0.04872886,142.91,142.88,0.05155979]
[1724164914540,3.54642886,142.91,142.88,0.05155979]
[1724164914731,0.04872886,142.91,142.88,3.54985979]
[1724164914938,0.04872886,142.91,142.88,0.05155979]
[1724164915238,3.4981,142.89,142.88,0.05155979]
[1724164918046,37.0681,142.89,142.88,0.05155979]
[1724164918241,33.57,142.89,142.8,1.10711038]
[1724164918448,33.57,142.86,142.8,1.10711038]
[1724164918744,33.57,142.86,142.79,1.10711038]
[1724164919039,33.57,142.86,142.78,2.7108]
[1724164919040,33.57,142.86,142.81,1.10713235]
[1724164919243,33.57,142.86,142.8,1.10713235]
[1724164919652,33.57,142.86,142.79,4.60753235]
[1724164919952,33.57,142.88,142.79,1.10713235]
[1724164920245,33.57,142.88,142.8,1.10713235]
[1724164920546,33.57,142.88,142.77,5.2068]
[1724164920547,33.57,142.88,142.82,0.04819853]
[1724164920748,0.04417184,142.84,142.82,0.04819853]
[1724164921244,3.54367184,142.84,142.82,0.04819853]
[1724164921446,0.04417184,142.84,142.82,0.04819853]
[1724164922237,33.61417184,142.84,142.82,0.04819853]
[1724164922541,3.4996,142.83,142.82,0.04819853]
[1724164923135,3.5005,142.8,142.74,1.10717582]
[1724164923341,33.57,142.81,142.74,1.10717582]
[1724164923537,33.57,142.79,142.74,1.10717582]
[1724164923743,3.5012,142.77,142.74,1.10717582]
[1724164923941,33.57,142.79,142.73,1.10717582]
[1724164924243,3.5009,142.78,142.75,1.10717582]
[1724164924436,33.57,142.79,142.74,1.10717582]
[1724164924842,3.5008,142.78,142.76,1.10717582]
[1724164925147,33.57,142.79,142.75,1.15468028]
[1724164925348,0.04557519,142.77,142.75,1.15468028]
[1724164925539,0.04557519,142.77,142.57,40.88439461]
[1724164925540,33.61557519,142.77,142.65,8.2766]
[1724164925740,33.57,142.74,142.65,8.2766]
[1724164926149,33.57,142.74,142.66,3.49779494]
[1724164926345,37.072,142.74,142.68,3.5031]
[1724164926755,33.57,142.74,142.69,1.10317398]
[1724164926950,0.05020373,142.72,142.7,0.04952236]
[1724164928053,0.05020373,142.72,142.7,1.15269634]
[1724164928240,0.05020373,142.72,142.7,0.04952236]
[1724164928549,0.05020373,142.72,142.71,1.10317398]
[1724164929350,0.05020373,142.72,142.71,1.10317398]
[1724164930055,33.57,142.81,142.71,1.10317398]
[1724164930349,33.57,142.81,142.71,6.25977398]
[1724164930564,33.57,142.83,142.73,33.57]
[1724164930752,33.57,142.85,142.74,33.57]
[1724164931156,33.57,142.85,142.74,38.1279417]
[1724164931376,33.57,142.87,142.76,33.57]
[1724164931659,3.499,142.86,142.76,33.57]
[1724164931957,33.57,142.89,142.78,33.57]
[1724164932154,3.4986,142.87,142.83,3.4995]
[1724164932360,33.57,142.89,142.79,7.7474]
[1724164932559,3.4981,142.9,142.86,3.4988]
[1724164932756,33.57,142.91,142.8,33.57]
[1724164932963,0.04692963,142.85,142.8,34.67317398]
[1724164933161,0.04692963,142.85,142.84,3.4992]
[1724164933454,3.4982,142.89,142.84,0.04828572]
[1724164934160,3.4982,142.89,142.85,3.4989]
[1724164934658,3.4984,142.88,142.84,0.04828572]
[1724164934865,33.62045682,142.88,142.84,0.04828572]
[1724164935555,0.05045682,142.88,142.84,0.04828572]
[1724164936954,0.05045682,142.88,142.86,3.4988]
[1724164937259,0.05045682,142.88,142.84,0.04828572]
[1724164937561,0.05045682,142.88,142.85,3.4989]
[1724164937761,0.05045682,142.88,142.84,0.04828572]
[1724164938260,33.57,142.96,142.84,33.61828572]
[1724164938463,3.4975,142.92,142.88,3.4983]
[1724164938757,3.4975,142.92,142.84,33.61828572]
[1724164938758,33.57,142.92,142.84,0.04828572]
[1724164938970,3.4984,142.88,142.84,3.54748572]
[1724164939151,33.57,142.88,142.79,11.22318741]
[1724164939463,33.57,142.88,142.81,1.02416235]
[1724164939657,33.57,142.88,142.8,1.02416235]
[1724164939852,0.0517737,142.87,142.85,0.04479966]
[1724164940052,3.5505737,142.87,142.85,0.04479966]
[1724164940658,0.0517737,142.87,142.85,0.04479966]
[1724164941257,3.5505737,142.87,142.85,0.04479966]
[1724164941853,0.0517737,142.87,142.85,0.04479966]
[1724164942363,33.57,142.93,142.85,0.04479966]
[1724164942952,33.57,142.91,142.85,0.04479966]
[1724164943355,37.0678,142.91,142.87,3.4984]
[1724164943662,33.57,142.94,142.85,0.04479966]
[1724164943853,3.4973,142.93,142.89,3.4979]
[1724164944060,3.51469055,143.01,142.86,38.8093]
[1724164944262,33.57,142.98,142.86,38.8093]
[1724164944462,33.57,142.98,142.88,33.57]
[1724164944769,33.57,142.98,142.9,0.05286253]
[1724164944953,3.4963,142.97,142.93,3.497]
[1724164945156,33.57,142.96,142.9,0.05286253]
[1724164945364,33.57,142.99,142.9,0.05286253]
[1724164945571,3.4962,142.97,142.93,3.497]
[1724164945770,0.05293799,142.94,142.88,36.99045708]
[1724164946065,33.57,143.01,142.9,33.57]
[1724164946260,33.57,143.01,142.94,0.04555122]
[1724164947169,3.4961,142.98,142.94,3.54225122]
[1724164947669,3.4961,142.98,142.94,0.04555122]
[1724164947870,3.4962,142.97,142.94,0.04555122]
[1724164948075,33.57,142.98,142.94,0.04555122]
[1724164948274,33.57,142.96,142.94,0.04555122]
[1724164949175,3.4964,142.96,142.94,0.04555122]
[1724164949359,0.04503436,142.99,142.94,0.04555122]
[1724164949759,3.496,142.98,142.95,3.4965]
[1724164950171,0.04503436,142.99,142.97,3.4961]
[1724164951464,0.04503436,142.99,142.95,38.7306]
[1724164951871,33.57,143.05,142.95,38.7306]
[1724164952261,33.57,143.05,142.96,3.54074507]
[1724164952559,33.57,143.05,142.95,38.7306]
[1724164952766,33.57,143.05,142.95,42.17384528]
[1724164952969,3.4951,143.02,142.99,3.4955]
[1724164953169,33.57,143.05,142.95,42.17384528]
[1724164953468,3.4943,143.05,143.02,3.4947]
[1724164953663,33.57,143.09,142.99,0.05153963]
[1724164953872,33.57,143.09,142.99,33.62153963]
[1724164954079,33.57,143.11,143.01,33.57]
[1724164954283,33.57,143.11,143.02,2.5551]
[1724164954479,3.4937,143.07,143.02,6.05]
[1724164954774,3.4937,143.07,143.02,2.5551]
[1724164954969,33.57,143.09,143.02,2.5551]
[1724164955168,33.57,143.11,143.02,2.5551]
[1724164955572,3.4932,143.1,143.02,2.5551]
[1724164955797,33.57,143.11,143.04,0.04579285]
[1724164956262,3.4934,143.09,143.05,3.494]
[1724164956876,3.4931,143.1,143.06,3.4939]
[1724164957074,33.57,143.13,143.04,0.04579285]
[1724164957272,33.57,143.11,143.04,0.04579285]
[1724164957474,33.57,143.13,143.04,0.04579285]
[1724164957684,33.57,143.09,143.04,0.04579285]
[1724164957874,3.4935,143.08,143.04,3.4943]
[1724164958171,33.57,143.09,143.03,2.6922]
[1724164958378,3.4934,143.09,143.03,6.23421582]
[1724164958877,3.4934,143.09,143.05,0.04457088]
[1724164959574,3.4931,143.1,143.06,3.4938]
[1724164959795,33.57,143.13,143.05,0.04457088]
[1724164959980,33.57,143.15,143.05,0.04457088]
[1724164960254,33.57,143.13,143.07,3.4936]
[1724164960375,33.57,143.13,143.05,0.04457088]
[1724164960609,33.57,143.13,143.07,3.4935]
[1724164960773,33.57,143.15,143.05,0.04457088]
[1724164961577,33.57,143.15,143.05,33.57]
[1724164961781,3.4925,143.12,143.09,3.4931]
[1724164962082,33.57,143.15,143.05,33.57]
[1724164962273,33.57,143.17,143.09,0.05307275]
[1724164962470,33.57,143.17,143.09,2.62707275]
[1724164962774,33.57,143.17,143.09,5.27197275]
[1724164963575,33.57,143.19,143.1,2.6779]
[1724164964283,3.4915,143.16,143.12,3.4923]
[1724164964469,33.57,143.19,143.13,0.04662945]
[1724164964670,33.57,143.21,143.13,3.53872945]
[1724164964981,33.57,143.19,143.13,0.04662945]
[1724164965182,33.57,143.19,143.12,3.4923]
[1724164965370,33.57,143.19,143.09,5.2189]
[1724164965580,33.57,143.15,143.04,36.2674]
[1724164965775,33.57,143.15,143.04,41.5404]
[1724164965977,33.57,143.15,143.05,3.48805637]
[1724164966280,3.4925,143.12,143.05,3.48805637]
[1724164966473,33.57,143.15,143.08,0.05048785]
[1724164966781,33.57,143.17,143.08,0.05048785]
[1724164966981,33.57,143.17,143.1,3.4929]
[1724164967182,33.57,143.17,143.08,0.05048785]
[1724164967577,3.4922,143.14,143.1,3.4928]
[1724164968483,3.4922,143.14,143.11,0.0477208]
[1724164968783,33.57,143.17,143.11,0.0477208]
[1724164969187,3.4925,143.12,143.11,0.0477208]
[1724164969387,33.57,143.13,143.04,7.9704]
[1724164969634,33.57,143.11,143.04,2.7381]
[1724164970280,33.57,143.11,142.99,33.57]
[1724164970575,0.04486604,143.06,143.04,0.05076143]
[1724164970970,3.53896604,143.06,143.04,0.05076143]
[1724164971171,3.4941,143.06,143.02,3.4949]
[1724164971680,33.57,143.09,143.0,3.4953]
[1724164971983,33.57,143.07,142.97,5.1159]
[1724164972179,0.04621695,143.06,143.04,0.0512497]
[1724164972381,0.04621695,143.06,142.97,5.1159]
[1724164972571,0.04621695,143.06,142.97,38.6859]
[1724164972982,3.4942,143.05,143.04,0.04668893]
[1724164973182,33.57,143.07,143.0,3.4953]
[1724164973377,3.54014676,143.03,142.97,5.1159]
[1724164973976,0.04524676,143.03,142.97,5.1159]
[1724164974478,0.04524676,143.03,142.97,38.6859]
[1724164974684,33.57,143.11,143.01,33.57]
[1724164974982,3.494,143.06,143.02,3.4948]
[1724164975182,33.57,143.11,143.01,33.57]
[1724164975399,33.57,143.09,142.99,33.57]
[1724164975579,33.57,143.07,142.97,5.1159]
[1724164975994,0.04916297,143.05,143.03,0.05178746]
[1724164976187,3.4944,143.04,143.03,0.05178746]
[1724164977384,3.54346297,143.05,143.03,0.05178746]
[1724164977685,0.04916297,143.05,143.03,0.05178746]
[1724164978183,0.04916297,143.05,143.04,3.4944]
[1724164978418,0.04916297,143.05,143.03,0.05178746]
[1724164979281,3.4944,143.04,143.03,0.05178746]
[1724164979494,33.61916297,143.05,142.85,6.998]
[1724164979686,3.4951,143.02,142.94,33.57]
[1724164979879,3.4951,143.02,142.95,3.55328531]
[1724164980187,3.4951,143.02,142.94,33.57]
[1724164980486,0.04784743,142.99,142.98,3.4958]
[1724164980788,33.57,143.05,142.94,37.06982355]
[1724164980981,3.4951,143.02,142.99,3.4956]
[1724164981289,0.04708881,143.0,142.99,3.4956]
[1724164981489,33.57,143.07,143.0,3.4954]
[1724164981694,33.57,143.07,142.97,0.04814496]
[1724164981890,33.57,143.07,143.0,3.4952]
[1724164982091,33.57,143.07,142.96,33.57]
[1724164982278,33.57,143.05,142.94,37.06982355]
[1724164982483,0.04615546,143.01,142.98,0.05160649]
[1724164982692,33.57,143.08,142.97,33.57]
[1724164982985,33.57,143.08,143.01,0.04623541]
[1724164982986,33.57,143.06,143.01,0.04623541]
[1724164983184,33.62359296,143.04,142.94,33.57]
[1724164983386,37.10745469,143.04,142.94,33.57]
[1724164983694,3.4956,143.0,142.93,11.41249815]
[1724164983999,37.10745469,143.04,142.95,3.4964]
[1724164984179,3.4964,142.96,142.93,5.2882]
[1724164984379,33.57,142.99,142.88,33.57]
[1724164984590,33.57,142.99,142.87,2.7364]
[1724164984591,33.57,142.97,142.89,3.498]
[1724164985191,37.00286481,142.97,142.89,3.498]
[1724164985690,3.4973,142.93,142.89,3.498]
[1724164985885,3.4973,142.93,142.92,0.04726659]
[1724164986598,33.57,142.93,142.86,2.6024]
[1724164986889,33.57,142.91,142.81,5.1683]
[1724164987192,3.4987,142.87,142.82,3.4996]
[1724164987490,3.4987,142.87,142.82,3.4998]
[1724164987793,0.05337056,142.86,142.83,0.04838448]
[1724164988180,3.4979,142.9,142.85,3.4989]
[1724164988378,33.56,142.94,142.85,3.4989]
[1724164988581,33.56,142.94,142.84,2.6443]
[1724164988789,3.4976,142.91,142.86,3.4988]
[1724164988984,33.56,142.94,142.84,2.6443]
[1724164989296,33.56,142.96,142.85,33.56]
[1724164989491,0.04510342,142.9,142.85,33.56]
[1724164989797,0.04510342,142.9,142.89,0.04631501]
[1724164990292,0.04510342,142.9,142.88,0.04867622]
[1724164990786,76.52292447,142.98,142.89,33.56]
[1724164990992,76.52292447,142.98,142.92,33.56]
[1724164991796,0.05024353,142.96,142.94,0.0450912]
[1724164993580,0.05024353,142.96,142.94,3.5417912]
[1724164993795,0.05024353,142.96,142.94,0.0450912]
[1724164995002,0.05024353,142.96,142.94,3.5417912]
[1724164995397,0.05024353,142.96,142.94,0.0450912]
[1724164996592,0.05024353,142.96,142.95,3.4966]
[1724164997100,0.05024353,142.96,142.94,3.5417912]
[1724164997295,0.05024353,142.96,142.94,0.0450912]
[1724164997800,0.05024353,142.96,142.95,3.4966]
[1724164998599,33.6568,143.05,142.98,3.4958]
[1724164998801,3.4953,143.01,142.98,3.4958]
[1724164999102,33.6568,143.05,142.98,3.4958]
[1724164999309,27.96,143.07,142.96,33.56]
[1724164999310,3.4949,143.02,142.96,33.56]
[1724164999601,33.56,143.05,142.94,33.56]
[1724164999800,0.04633524,143.0,142.98,0.05045258]
[1724165000303,33.56,143.02,142.91,2.7571]
[1724165000598,3.56960832,143.04,142.93,33.56]
[1724165000599,0.04733308,143.0,142.93,33.56]
[1724165000993,0.04733308,143.0,142.95,33.56]
[1724165001214,0.04733308,143.0,142.99,3.4957]
[1724165001393,33.56,143.08,142.98,37.04259584]
[1724165001590,33.56,143.08,142.99,5.1221]
[1724165002197,33.56,143.08,143.01,3.495]
[1724165002499,33.56,143.08,142.99,5.1221]
[1724165002698,33.56,143.08,143.03,0.04806323]
[1724165002699,3.4944,143.05,143.03,0.04806323]
[1724165003097,0.05129854,143.06,143.03,0.04806323]
[1724165004303,0.05129854,143.06,143.03,3.54266323]
[1724165005096,0.05129854,143.06,143.03,0.04806323]
[1724165006100,0.05129854,143.06,143.04,3.4942]
[1724165006495,0.05129854,143.06,143.05,3.4942]
[1724165007315,3.493,143.1,143.06,3.4939]
[1724165007709,3.52829129,143.14,143.04,33.56]
[1724165008011,33.56,143.15,143.04,33.56]
[1724165008203,0.04463766,143.11,143.08,0.04794557]
[1724165008403,3.53753766,143.11,143.08,0.04794557]
[1724165008600,0.04463766,143.11,143.08,0.04794557]
[1724165008811,0.04463766,143.11,143.08,3.54124557]
[1724165009002,3.53743766,143.11,143.08,3.04124557]
[1724165009611,0.04463766,143.11,143.07,8.8208]
[1724165009808,0.04463766,143.11,143.07,5.3273]
[1724165010310,0.04463766,143.11,143.08,0.0472638]
[1724165011115,33.56,143.09,143.0,5.2544]
[1724165011812,33.56,143.06,143.0,5.2544]
[1724165012014,37.05685419,143.16,142.85,340.0]
[1724165012015,3.4952,143.01,142.97,3.4961]
[1724165012406,0.04834725,143.0,142.98,0.04867838]
[1724165013117,0.04834725,143.0,142.98,3.54447838]
[1724165013417,33.56,143.07,142.98,0.04867838]
[1724165013614,3.4947,143.04,142.98,3.58169313]
[1724165014006,3.4947,143.04,142.98,3.53301475]
[1724165014209,3.4947,143.04,142.97,33.54]
[1724165014613,0.0449805,143.02,142.99,0.04819863]
[1724165014812,3.4942,143.05,142.99,0.04819863]
[1724165015123,33.54,143.08,142.99,33.54]
[1724165015311,3.494,143.06,143.02,3.4947]
[1724165015707,33.54,143.12,143.02,33.54]
[1724165015912,3.4934,143.09,143.05,3.4942]
[1724165016116,0.04656601,143.08,143.06,0.05216165]
[1724165016820,0.04656601,143.08,143.06,3.54606165]
[1724165017120,0.04656601,143.08,143.07,3.4937]
[1724165017309,33.54,143.14,143.07,3.4937]
[1724165018519,3.4929,143.11,143.07,3.4937]
[1724165018710,3.4929,143.11,143.09,0.04643879]
[1724165019318,3.493,143.1,143.09,0.04643879]
[1724165020234,3.4929,143.11,143.09,0.04643879]
[1724165020422,3.4929,143.11,143.09,0.05243315]
[1724165021213,3.4926,143.12,143.09,0.05243315]
[1724165021924,33.54,143.16,143.09,0.05243315]
[1724165021925,3.4928,143.11,143.09,0.05243315]
[1724165023124,33.54,143.16,143.09,3.54553315]
[1724165023621,3.4924,143.13,143.1,3.4929]
[1724165023811,33.54,143.16,143.1,3.4929]
[1724165024427,33.54,143.16,143.09,3.54553315]
[1724165024924,33.54,143.16,143.09,0.05243315]
[1724165025224,3.4924,143.13,143.1,3.4929]
[1724165025431,33.54,143.16,143.09,0.05243315]
[1724165025718,3.4925,143.12,143.09,3.54553315]
[1724165026231,33.54,143.14,143.09,0.05243315]
[1724165026526,36.96649531,143.14,143.1,0.05087663]
[1724165026717,3.4927,143.11,143.1,0.05087663]
[1724165027727,33.54,143.16,143.1,0.05087663]
[1724165027932,33.54,143.16,143.06,33.54]
[1724165027933,33.54,143.16,143.12,0.05068807]
[1724165028829,3.4922,143.13,143.12,0.05068807]
[1724165030424,3.4933,143.09,143.05,6.0936]
[1724165030625,33.54,143.1,142.98,27.94]
[1724165030826,3.4944,143.04,142.99,5.106]
[1724165031128,3.4944,143.04,142.99,7.7966]
[1724165031324,0.04632118,143.03,143.0,0.04441001]
[1724165031530,24.5241448,143.15,143.0,0.04441001]
[1724165031720,33.54,143.1,142.99,7.7966]
[1724165031918,3.4938,143.07,143.0,33.54]
[1724165032237,37.0741448,143.15,143.0,33.54]
[1724165032238,33.54,143.12,143.0,33.54]
[1724165032731,3.4936,143.08,143.05,0.05262022]
[1724165033124,33.54,143.12,143.05,0.05262022]
[1724165033325,3.4938,143.07,143.05,0.05262022]
[1724165033627,33.54,143.12,143.05,0.05262022]
[1724165033819,3.493,143.1,143.05,3.54672022]
[1724165034130,33.54,143.12,143.05,3.54672022]
[1724165034338,33.54,143.12,143.05,7.03099957]
[1724165034629,33.54,143.14,143.05,3.54672022]
[1724165034826,33.54,143.14,143.08,0.04632153]
[1724165035523,36.97712368,143.14,143.08,0.04632153]
[1724165035732,3.4932,143.09,143.08,0.04632153]
[1724165037825,33.54,143.12,143.08,0.04632153]
[1724165037826,33.54,143.14,143.08,0.04632153]